[Event "Irish International Open 2019"]
[Site "Dublin"]
[Date "2019.04.21"]
[Round "8.11"]
[White "Reprun, Nadejda"]
[Black "Pulkkinen, Kari"]
[Result "0-1"]
[ECO "B34"]
[WhiteElo "1995"]
[BlackElo "2265"]
[Annotator "NA"]
[PlyCount "72"]
[EventDate "2019.02.28"]
[EventType "swiss"]
[EventCountry "IRL"]
[SourceTitle "playchess.com"]
[Source "ChessBase"]
[SourceQuality "1"]
[TimeControl "5400+30"]

1. e4 {[%emt 0:00:00]} c5 {[%emt 0:00:00]} 2. Nf3 {[%emt 0:00:00]} g6 {[%emt 0:00:00]} 3. d4 {[%emt 0:00:00]} cxd4 {[%emt 0:00:02]} 4. Nxd4 {[%emt 0:00:00]} Nc6 {[%emt 0:00:18]} 5. Nc3 {[%emt 0:00:11]} Bg7 {[%emt 0:00:17]} 6. Be3 {[%emt 0:00:19]} Nf6 {[%emt 0:00:15]} 7. Bc4 {[%emt 0:05:46]} Qa5 {[%emt 0:00:48]} 8. Nxc6 {[%emt 0:25:24]} bxc6 {[%emt 0:00:47]} 9. O-O {[%emt 0:01:44]} O-O {[%emt 0:01:01]} 10. f3 {[%emt 0:10:04]} Rd8 {[%emt 0:05:31]} 11. Bb3 {[%emt 0:03:45]} d5 {[%emt 0:01:31]} 12. exd5 {[%emt 0:00:46]} cxd5 {[%emt 0:00:58]} 13. Bd4 {[%emt 0:00:15]} e6 {[%emt 0:13:12]} 14. Re1 {[%emt 0:00:31]} Bd7 {[%emt 0:01:35]} 15. Qd2 {[%emt 0:00:48]} Qb4 {[%emt 0:01:09]} 16. Rad1 {[%emt 0:01:39]} a5 {[%emt 0:02:02]} 17. a3 {[%emt 0:01:47]} Qb7 {[%emt 0:00:43]} 18. a4 {[%emt 0:01:04]} Bc6 {[%emt 0:03:27]} 19. Qf2 {[%emt 0:02:35]} Nd7 {[%emt 0:00:36]} 20. Bxg7 {[%emt 0:03:39]} Kxg7 {[%emt 0:00:07]} 21. Kh1 {[%emt 0:00:24]} Rab8 {[%emt 0:03:34]} 22. Qh4 {[%emt 0:02:30]} Re8 {[%emt 0:00:53]} 23. h3 {[%emt 0:03:54]} Qc7 {[%emt 0:01:16]} 24. Re2 {[%emt 0:05:33]} Qd8 {[%emt 0:03:52]} 25. Qe1 {[%emt 0:01:55]} Kg8 {[%emt 0:03:17]} 26. Nb5 {[%emt 0:10:38]} Nc5 {[%emt 0:07:19]} 27. Nd4 {[%emt 0:04:37]} Bd7 {[%emt 0:00:50]} 28. Nb5 {[%emt 0:01:26]} Bxb5 {[%emt 0:00:41]} 29. axb5 {[%emt 0:00:09]} Nxb3 {[%emt 0:00:10]} 30. cxb3 {[%emt 0:00:10]} Rxb5 {[%emt 0:00:07]} 31. Rd4 {[%emt 0:00:35]} Qb6 {[%emt 0:03:39]} 32. Qd2 {[%emt 0:02:18]} Rc8 {[%emt 0:01:02]} 33. Rh4 {[%emt 0:00:41]} Rb4 {[%emt 0:03:09]} 34. g4 {[%emt 0:01:45]} Qd4 {[%emt 0:00:56]} 35. Qe1 {[%emt 0:03:54]} Qf4 {[%emt 0:02:07]} 36. Re3 {[%emt 0:01:36]} Rc2 {[%emt 0:00:43]} 0-1

[Event "Irish International Open 2019"]
[Site "Dublin"]
[Date "2019.04.21"]
[Round "8.12"]
[White "Melaugh, Shane"]
[Black "Horvath, Gabor"]
[Result "1/2-1/2"]
[ECO "A28"]
[WhiteElo "2105"]
[BlackElo "2252"]
[Annotator "NA"]
[PlyCount "55"]
[EventDate "2019.02.28"]
[EventType "swiss"]
[EventCountry "IRL"]
[SourceTitle "playchess.com"]
[Source "ChessBase"]
[SourceQuality "1"]
[TimeControl "5400+30"]

1. c4 {[%emt 0:00:00]} e5 {[%emt 0:00:00]} 2. Nc3 {[%emt 0:00:00]} Nf6 {[%emt 0:00:00]} 3. Nf3 {[%emt 0:00:00]} Nc6 {[%emt 0:00:00]} 4. e4 {[%emt 0:00:00]} Bc5 {[%emt 0:03:30]} 5. Nxe5 {[%emt 0:00:00]} Nxe5 {[%emt 0:15:20]} 6. d4 {[%emt 0:00:03]} Bxd4 {[%emt 0:18:46]} 7. Qxd4 {[%emt 0:00:15]} d6 {[%emt 0:02:36]} 8. Bg5 {[%emt 0:02:06]} h6 {[%emt 0:01:26]} 9. Bh4 {[%emt 0:00:53]} Be6 {[%emt 0:08:26]} 10. Nd5 {[%emt 0:03:35]} g5 {[%emt 0:08:26]} 11. Bg3 {[%emt 0:01:00]} Bxd5 {[%emt 0:00:58]} 12. exd5 {[%emt 0:06:02]} O-O {[%emt 0:00:48]} 13. O-O-O {[%emt 0:00:35]} Nfd7 {[%emt 0:04:30]} 14. f4 {[%emt 0:01:26]} Ng6 {[%emt 0:01:31]} 15. f5 {[%emt 0:04:16]} Nge5 {[%emt 0:00:13]} 16. h4 {[%emt 0:00:15]} Qf6 {[%emt 0:00:31]} 17. hxg5 {[%emt 0:01:01]} hxg5 {[%emt 0:00:18]} 18. Bd3 {[%emt 0:02:16]} Kg7 {[%emt 0:00:53]} 19. Rh3 {[%emt 0:10:58]} Rh8 {[%emt 0:01:48]} 20. Bf2 {[%emt 0:00:11]} Rxh3 {[%emt 0:06:56]} 21. gxh3 {[%emt 0:00:01]} Nxd3+ {[%emt 0:00:23]} 22. Qxd3 {[%emt 0:00:26]} Ne5 {[%emt 0:01:28]} 23. Qe4 {[%emt 0:00:40]} Rh8 {[%emt 0:01:09]} 24. Rh1 {[%emt 0:02:44]} Kf8 {[%emt 0:05:00]} 25. c5 {[%emt 0:01:12]} g4 {[%emt 0:01:44]} 26. h4 {[%emt 0:00:16]} Rh5 {[%emt 0:00:19]} 27. cxd6 {[%emt 0:03:15]} cxd6 {[%emt 0:00:06]} 28. Bxa7 {[%emt 1:00:34]} 1/2-1/2

[Event "Irish International Open 2019"]
[Site "Dublin"]
[Date "2019.04.21"]
[Round "8.13"]
[White "Thorarinsson, Pall A."]
[Black "Murray, David"]
[Result "1/2-1/2"]
[ECO "B31"]
[WhiteElo "2246"]
[BlackElo "2152"]
[Annotator "NA"]
[PlyCount "94"]
[EventDate "2019.02.28"]
[EventType "swiss"]
[EventCountry "IRL"]
[SourceTitle "playchess.com"]
[Source "ChessBase"]
[SourceQuality "1"]
[TimeControl "5400+30"]

1. e4 {[%emt 0:00:00]} c5 {[%emt 0:00:00]} 2. Nf3 {[%emt 0:00:00]} Nc6 {[%emt 0:00:04]} 3. Bb5 {[%emt 0:00:01]} g6 {[%emt 0:01:18]} 4. Bxc6 {[%emt 0:00:15]} dxc6 {[%emt 0:01:21]} 5. d3 {[%emt 0:00:39]} Bg7 {[%emt 0:01:47]} 6. h3 {[%emt 0:00:33]} Nh6 {[%emt 0:01:17]} 7. Nc3 {[%emt 0:00:37]} f6 {[%emt 0:00:15]} 8. Be3 {[%emt 0:04:21]} b6 {[%emt 0:00:40]} 9. Qd2 {[%emt 0:04:13]} Nf7 {[%emt 0:00:21]} 10. Nh2 {[%emt 0:01:05]} e5 {[%emt 0:02:10]} 11. f4 {[%emt 0:06:49]} Be6 {[%emt 0:02:24]} 12. g4 {[%emt 0:03:43]} exf4 {[%emt 0:03:21]} 13. Bxf4 {[%emt 0:03:08]} h5 {[%emt 0:01:46]} 14. O-O-O {[%emt 0:13:11]} Qd7 {[%emt 0:05:25]} 15. Qg2 {[%emt 0:04:50]} hxg4 {[%emt 0:03:57]} 16. Nxg4 {[%emt 0:03:58]} O-O-O {[%emt 0:03:50]} 17. Nf2 {[%emt 0:00:59]} Bh6 {[%emt 0:02:25]} 18. Bxh6 {[%emt 0:04:39]} Rxh6 {[%emt 0:00:15]} 19. Ng4 {[%emt 0:01:29]} Bxg4 {[%emt 0:02:42]} 20. hxg4 {[%emt 0:00:13]} Rdh8 {[%emt 0:01:45]} 21. Rxh6 {[%emt 0:00:22]} Rxh6 {[%emt 0:00:42]} 22. Rf1 {[%emt 0:00:14]} Qe6 {[%emt 0:04:55]} 23. Kb1 {[%emt 0:46:11]} Rh4 {[%emt 0:05:14]} 24. a3 {[%emt 0:00:00]} Rxg4 {[%emt 0:06:06]} 25. Rxf6 {[%emt 0:00:00]} Rxg2 {[%emt 0:00:58]} 26. Rxe6 {[%emt 0:00:00]} Kd7 {[%emt 0:00:56]} 27. Rf6 {[%emt 0:00:00]} Ne5 {[%emt 0:01:57]} 28. b4 {[%emt 0:00:00]} Ke7 {[%emt 0:02:22]} 29. Rf1 {[%emt 0:00:00]} cxb4 {[%emt 0:00:23]} 30. axb4 {[%emt 0:00:00]} g5 {[%emt 0:01:13]} 31. b5 {[%emt 0:00:00]} cxb5 {[%emt 0:03:51]} 32. Nxb5 {[%emt 0:00:00]} g4 {[%emt 0:02:05]} 33. Nd4 {[%emt 0:00:00]} a5 {[%emt 0:09:56]} 34. Rf5 {[%emt 0:00:00]} Nf7 {[%emt 0:02:18]} 35. Rb5 {[%emt 0:00:00]} Nd6 {[%emt 0:02:05]} 36. Rxb6 {[%emt 0:00:00]} g3 {[%emt 0:00:50]} 37. Nf5+ {[%emt 0:01:08]} Nxf5 {[%emt 0:00:19]} 38. exf5 {[%emt 0:00:04]} Rf2 {[%emt 0:01:35]} 39. Rg6 {[%emt 0:00:07]} g2 {[%emt 0:00:57]} 40. Kb2 {[%emt 0:01:37]} a4 {[%emt 0:00:35]} 41. d4 {[%emt 0:03:02]} a3+ {[%emt 0:01:33]} 42. Kxa3 {[%emt 0:00:12]} Rxc2 {[%emt 0:00:10]} 43. Kb4 {[%emt 0:00:07]} Rf2 {[%emt 0:01:46]} 44. Kc4 {[%emt 0:00:23]} Rxf5 {[%emt 0:01:35]} 45. Rxg2 {[%emt 0:00:06]} Kd7 {[%emt 0:00:56]} 46. Rg6 {[%emt 0:01:26]} Rh5 {[%emt 0:00:46]} 47. d5 {[%emt 0:00:35]} Rh1 {[%emt 0:00:18]} 1/2-1/2

[Event "Irish International Open 2019"]
[Site "Dublin"]
[Date "2019.04.21"]
[Round "8.14"]
[White "Fitzsimons, David"]
[Black "Buonanno, Raffaele"]
[Result "1-0"]
[ECO "B01"]
[WhiteElo "2299"]
[BlackElo "2091"]
[Annotator "NA"]
[PlyCount "85"]
[EventDate "2019.02.28"]
[EventType "swiss"]
[EventCountry "IRL"]
[SourceTitle "playchess.com"]
[Source "ChessBase"]
[SourceQuality "1"]
[TimeControl "5400+30"]

1. e4 {[%emt 0:00:00]} d5 {[%emt 0:09:35]} 2. exd5 {[%emt 0:00:00]} Qxd5 {[%emt 0:00:04]} 3. Nc3 {[%emt 0:00:14]} Qd6 {[%emt 0:00:08]} 4. d4 {[%emt 0:00:21]} c6 {[%emt 0:00:06]} 5. Nf3 {[%emt 0:01:01]} Bg4 {[%emt 0:00:08]} 6. h3 {[%emt 0:03:09]} Bxf3 {[%emt 0:00:19]} 7. Qxf3 {[%emt 0:00:06]} Qxd4 {[%emt 0:00:04]} 8. Nb5 {[%emt 0:01:13]} Qe5+ {[%emt 0:05:37]} 9. Be2 {[%emt 0:00:31]} Na6 {[%emt 0:00:30]} 10. Bf4 {[%emt 0:00:32]} Qd5 {[%emt 0:07:36]} 11. O-O {[%emt 0:04:45]} Nf6 {[%emt 0:14:10]} 12. Rad1 {[%emt 0:04:10]} Qxf3 {[%emt 0:00:31]} 13. Bxf3 {[%emt 0:00:06]} e6 {[%emt 0:01:06]} 14. c4 {[%emt 0:05:32]} Be7 {[%emt 0:01:15]} 15. b3 {[%emt 0:11:59]} O-O {[%emt 0:00:45]} 16. Nd6 {[%emt 0:00:53]} Bxd6 {[%emt 0:02:44]} 17. Bxd6 {[%emt 0:00:06]} Rfd8 {[%emt 0:00:11]} 18. b4 {[%emt 0:00:31]} Nb8 {[%emt 0:08:50]} 19. b5 {[%emt 0:02:17]} a6 {[%emt 0:01:55]} 20. Be7 {[%emt 0:00:32]} Re8 {[%emt 0:01:02]} 21. Bxf6 {[%emt 0:03:28]} gxf6 {[%emt 0:00:05]} 22. a4 {[%emt 0:01:04]} axb5 {[%emt 0:00:38]} 23. axb5 {[%emt 0:00:02]} Ra4 {[%emt 0:00:27]} 24. Be2 {[%emt 0:03:32]} Ra2 {[%emt 0:01:47]} 25. Rfe1 {[%emt 0:04:04]} Kg7 {[%emt 0:00:15]} 26. Rd3 {[%emt 0:05:09]} Re7 {[%emt 0:01:15]} 27. Bf3 {[%emt 0:01:18]} Rc2 {[%emt 0:03:16]} 28. Red1 {[%emt 0:00:28]} cxb5 {[%emt 0:01:36]} 29. cxb5 {[%emt 0:00:02]} Rcc7 {[%emt 0:00:31]} 30. Rb3 {[%emt 0:01:08]} Red7 {[%emt 0:02:29]} 31. Ra1 {[%emt 0:01:01]} Rd2 {[%emt 0:05:41]} 32. b6 {[%emt 0:04:22]} Rcd7 {[%emt 0:00:07]} 33. Ra8 {[%emt 0:00:25]} Rd8 {[%emt 0:03:42]} 34. Bxb7 {[%emt 0:00:27]} R2d7 {[%emt 0:04:15]} 35. Bf3 {[%emt 0:00:06]} f5 {[%emt 0:00:08]} 36. Rc3 {[%emt 0:00:21]} Re7 {[%emt 0:05:03]} 37. Rc7 {[%emt 0:01:46]} Kf8 {[%emt 0:01:44]} 38. Kf1 {[%emt 0:01:03]} e5 {[%emt 0:04:08]} 39. Bd5 {[%emt 0:01:57]} Ke8 {[%emt 0:00:36]} 40. Bb3 {[%emt 0:00:38]} Kf8 {[%emt 0:02:47]} 41. Ba4 {[%emt 0:02:07]} e4 {[%emt 0:03:37]} 42. Raa7 {[%emt 0:00:30]} Re6 {[%emt 0:00:12]} 43. Rxf7+ {[%emt 0:00:05]} 1-0

[Event "Irish International Open 2019"]
[Site "Dublin"]
[Date "2019.04.21"]
[Round "8.15"]
[White "Flynn, Jacob"]
[Black "Daly, Colm"]
[Result "1/2-1/2"]
[ECO "E61"]
[WhiteElo "2011"]
[BlackElo "2278"]
[Annotator "ChessBase"]
[PlyCount "110"]
[EventDate "2019.02.28"]
[EventType "swiss"]
[EventCountry "IRL"]
[SourceTitle "playchess.com"]
[Source "ChessBase"]
[SourceQuality "1"]
[TimeControl "5400+30"]

1. d4 {[%emt 0:00:00]} Nf6 {[%emt 0:00:00]} 2. Nf3 {[%emt 0:00:00]} d6 {[%emt 0:00:24]} 3. c4 {[%emt 0:01:50]} g6 {[%emt 0:00:42]} 4. Nc3 {[%emt 0:00:15]} Bg7 {[%emt 0:00:08]} 5. Bg5 {[%emt 0:00:10]} O-O {[%emt 0:00:29]} 6. e3 {[%emt 0:00:57]} Nbd7 {[%emt 0:00:51]} 7. Be2 {[%emt 0:00:18]} e5 {[%emt 0:01:17]} 8. O-O {[%emt 0:03:39]} h6 {[%emt 0:01:17]} 9. Bh4 {[%emt 0:00:36]} c6 {[%emt 0:00:10]} 10. h3 {[%emt 0:04:47]} Re8 {[%emt 0:02:01]} 11. Qc2 {[%emt 0:03:19]} a6 {[%emt 0:03:18]} 12. b4 {[%emt 0:03:37]} exd4 {[%emt 0:04:02]} 13. exd4 {[%emt 0:00:42]} Nb6 {[%emt 0:01:54]} 14. c5 {[%emt 0:09:00]} Bf5 {[%emt 0:01:28]} 15. Bd3 {[%emt 0:06:58]} Bxd3 {[%emt 0:00:03]} 16. Qxd3 {[%emt 0:00:05]} dxc5 {[%emt 0:01:39]} 17. bxc5 {[%emt 0:00:03]} Nbd5 {[%emt 0:02:14]} 18. Nxd5 {[%emt 0:11:47]} Qxd5 {[%emt 0:06:34]} 19. Bxf6 {[%emt 0:01:33]} Bxf6 {[%emt 0:00:03]} 20. Rab1 {[%emt 0:07:05]} Re7 {[%emt 0:02:07]} 21. Rb3 {[%emt 0:01:25]} Rd8 {[%emt 0:00:21]} 22. Rfb1 {[%emt 0:04:09]} Rdd7 {[%emt 0:00:42]} 23. a3 {[%emt 0:03:01]} Kg7 {[%emt 0:00:08]} 24. Rb4 {[%emt 0:03:52]} h5 {[%emt 0:01:27]} 25. R1b3 {[%emt 0:06:11]} a5 {[%emt 0:09:54]} 26. Rb6 {[%emt 0:03:17]} Bxd4 {[%emt 0:00:39]} 27. Qxd4+ {[%emt 0:00:22]} Qxd4 {[%emt 0:00:02]} 28. Nxd4 {[%emt 0:00:08]} Rxd4 {[%emt 0:00:07]} 29. Rxb7 {[%emt 0:00:14]} Rd1+ {[%emt 0:00:58]} 30. Kh2 {[%emt 0:00:02]} Rxb7 {[%emt 0:01:12]} 31. Rxb7 {[%emt 0:00:06]} Rc1 {[%emt 0:00:11]} 32. Rc7 {[%emt 0:06:37]} Rxc5 {[%emt 0:00:06]} 33. h4 {[%emt 0:01:10]} Rc4 {[%emt 0:01:04]} 34. Kh3 {[%emt 0:00:41]} a4 {[%emt 0:00:11]} 35. f3 {[%emt 0:00:27]} Kf6 {[%emt 0:00:49]} 36. g4 {[%emt 0:01:52]} Ke6 {[%emt 0:02:36]} 37. Kg3 {[%emt 0:01:09]} hxg4 {[%emt 0:07:13]} 38. fxg4 {[%emt 0:00:03]} f5 {[%emt 0:00:08]} 39. g5 {[%emt 0:01:49]} Rc3+ {[%emt 0:08:39]} 40. Kf4 {[%emt 0:01:33]} Rc4+ {[%emt 0:00:13]} 41. Kg3 {[%emt 0:00:05]} Ke5 {[%emt 0:04:58]} 42. Re7+ {[%emt 0:01:35]} Kd5 {[%emt 0:00:18]} 43. Rd7+ {[%emt 0:00:19]} Ke4 {[%emt 0:00:08]} 44. Re7+ {[%emt 0:15:12]} Kd3 {[%emt 0:18:06]} 45. Rd7+ {[%emt 0:00:00]} Ke3 {[%emt 0:07:20]} 46. Re7+ {[%emt 0:00:00]} Kd2 {[%emt 0:08:27]} 47. Rd7+ {[%emt 0:00:00]} Kc2 {[%emt 0:00:06]} 48. Rd6 {[%emt 0:00:00]} c5 {[%emt 0:02:00]} 49. Rxg6 {[%emt 0:00:00]} Rg4+ {[%emt 0:00:05]} 50. Kh3 {[%emt 0:00:00]} c4 {[%emt 0:01:05]} 51. h5 {[%emt 0:00:00]} c3 {[%emt 0:01:12]} 52. h6 {[%emt 0:00:00]} Rg1 {[%emt 0:00:17]} 53. Kh2 {[%emt 0:00:00]} Rg4 {[%emt 0:01:05]} 54. Kh3 {[%emt 0:00:00]} Rg1 {[%emt 0:00:33]} 55. Kh2 {[%emt 0:00:00]} Rg4 {[%emt 0:00:04]} 1/2-1/2

[Event "Irish International Open 2019"]
[Site "Dublin"]
[Date "2019.04.21"]
[Round "8.17"]
[White "Duffy, Seamus"]
[Black "Schut, Han"]
[Result "1/2-1/2"]
[ECO "A01"]
[WhiteElo "1921"]
[BlackElo "2173"]
[Annotator "ChessBase"]
[PlyCount "75"]
[EventDate "2019.02.28"]
[EventType "swiss"]
[EventCountry "IRL"]
[SourceTitle "playchess.com"]
[Source "ChessBase"]
[SourceQuality "1"]
[TimeControl "5400+30"]

1. b3 {[%emt 0:00:00]} d5 {[%emt 0:09:27]} 2. Bb2 {[%emt 0:00:00]} c5 {[%emt 0:00:07]} 3. e3 {[%emt 0:00:00]} a6 {[%emt 0:00:10]} 4. f4 {[%emt 0:00:00]} Nf6 {[%emt 0:00:05]} 5. Nf3 {[%emt 0:00:00]} g6 {[%emt 0:00:09]} 6. Be2 {[%emt 0:00:24]} Bg7 {[%emt 0:00:07]} 7. O-O {[%emt 0:00:11]} Nc6 {[%emt 0:00:06]} 8. Ne5 {[%emt 0:01:22]} Bd7 {[%emt 0:00:07]} 9. d3 {[%emt 0:01:47]} d4 {[%emt 0:01:12]} 10. Nxc6 {[%emt 0:01:40]} Bxc6 {[%emt 0:01:06]} 11. e4 {[%emt 0:00:13]} O-O {[%emt 0:01:18]} 12. Bf3 {[%emt 0:01:35]} Qc7 {[%emt 0:04:16]} 13. g3 {[%emt 0:01:12]} b5 {[%emt 0:09:34]} 14. Nd2 {[%emt 0:02:31]} Rad8 {[%emt 0:06:05]} 15. Qe2 {[%emt 0:03:10]} e6 {[%emt 0:02:08]} 16. Bg2 {[%emt 0:03:16]} Nd7 {[%emt 0:08:32]} 17. h4 {[%emt 0:05:24]} h5 {[%emt 0:02:53]} 18. g4 {[%emt 0:03:51]} hxg4 {[%emt 0:00:07]} 19. Qxg4 {[%emt 0:00:08]} Nf6 {[%emt 0:01:39]} 20. Qg5 {[%emt 0:03:48]} Nh5 {[%emt 0:03:15]} 21. Bh3 {[%emt 0:10:48]} Kh7 {[%emt 0:07:20]} 22. Qxc5 {[%emt 0:13:05]} Nxf4 {[%emt 0:02:06]} 23. Rf3 {[%emt 0:04:05]} Bh6 {[%emt 0:05:08]} 24. Nf1 {[%emt 0:02:44]} f5 {[%emt 0:11:18]} 25. Nh2 {[%emt 0:15:18]} Nxh3+ {[%emt 0:02:13]} 26. Rxh3 {[%emt 0:00:08]} Be3+ {[%emt 0:03:19]} 27. Rxe3 {[%emt 0:01:19]} dxe3 {[%emt 0:00:02]} 28. Be5 {[%emt 0:05:04]} Qd7 {[%emt 0:12:26]} 29. Qxe3 {[%emt 0:01:42]} Kg8 {[%emt 0:01:35]} 30. Qg5 {[%emt 0:04:23]} Qh7 {[%emt 0:00:47]} 31. h5 {[%emt 0:07:35]} fxe4 {[%emt 0:03:54]} 32. Ng4 {[%emt 0:02:52]} Qxh5 {[%emt 0:01:19]} 33. Nf6+ {[%emt 0:02:07]} Rxf6 {[%emt 0:00:13]} 34. Qxf6 {[%emt 0:00:02]} Qg4+ {[%emt 0:01:20]} 35. Kh2 {[%emt 0:01:19]} Qe2+ {[%emt 0:00:21]} 36. Kg1 {[%emt 0:00:51]} Qg4+ {[%emt 0:01:24]} 37. Kh2 {[%emt 0:00:26]} Qe2+ {[%emt 0:00:33]} 38. Kg1 {[%emt 0:00:26]} 1/2-1/2

[Event "Irish International Open 2019"]
[Site "Dublin"]
[Date "2019.04.21"]
[Round "8.18"]
[White "Longson, Sarah N"]
[Black "Schmitz, Andreas Arnold"]
[Result "1-0"]
[ECO "C10"]
[WhiteElo "2123"]
[BlackElo "2003"]
[Annotator "NA"]
[PlyCount "57"]
[EventDate "2019.02.28"]
[EventType "swiss"]
[EventCountry "IRL"]
[SourceTitle "playchess.com"]
[Source "ChessBase"]
[SourceQuality "1"]
[TimeControl "5400+30"]

1. e4 {[%emt 0:00:00]} e6 {[%emt 0:00:00]} 2. d4 {[%emt 0:00:00]} d5 {[%emt 0:00:00]} 3. Nd2 {[%emt 0:00:00]} Nf6 {[%emt 0:00:00]} 4. Bd3 {[%emt 0:00:49]} dxe4 {[%emt 0:01:27]} 5. Nxe4 {[%emt 0:00:12]} Bd7 {[%emt 0:02:16]} 6. Nf3 {[%emt 0:01:30]} Nxe4 {[%emt 0:01:28]} 7. Bxe4 {[%emt 0:00:11]} Bc6 {[%emt 0:00:08]} 8. Bd3 {[%emt 0:01:16]} Nd7 {[%emt 0:02:50]} 9. c3 {[%emt 0:02:30]} Qf6 {[%emt 0:02:13]} 10. Bg5 {[%emt 0:02:39]} Bxf3 {[%emt 0:00:21]} 11. Qd2 {[%emt 0:00:05]} Bxg2 {[%emt 0:00:34]} 12. Bxf6 {[%emt 0:00:05]} Bxh1 {[%emt 0:00:22]} 13. Bh4 {[%emt 0:02:03]} Bc6 {[%emt 0:02:55]} 14. c4 {[%emt 0:03:15]} Nf6 {[%emt 0:05:43]} 15. Bxf6 {[%emt 0:02:21]} gxf6 {[%emt 0:00:07]} 16. d5 {[%emt 0:01:52]} Bd7 {[%emt 0:02:19]} 17. dxe6 {[%emt 0:04:25]} fxe6 {[%emt 0:06:58]} 18. Qa5 {[%emt 0:05:17]} Bd6 {[%emt 0:04:10]} 19. Be4 {[%emt 0:04:52]} c6 {[%emt 0:07:12]} 20. Rd1 {[%emt 0:03:44]} Be5 {[%emt 0:01:18]} 21. f4 {[%emt 0:02:13]} Bxf4 {[%emt 0:02:28]} 22. Qh5+ {[%emt 0:00:07]} Ke7 {[%emt 0:00:28]} 23. Qc5+ {[%emt 0:00:06]} Ke8 {[%emt 0:01:21]} 24. Qd4 {[%emt 0:00:27]} Rd8 {[%emt 0:01:03]} 25. Qxf6 {[%emt 0:01:16]} Rf8 {[%emt 0:00:10]} 26. Qh4 {[%emt 0:00:57]} e5 {[%emt 0:05:50]} 27. Bxh7 {[%emt 0:01:14]} Kf7 {[%emt 0:00:44]} 28. Rd6 {[%emt 0:10:07]} Kg7 {[%emt 0:03:37]} 29. Qe7+ {[%emt 0:00:23]} 1-0

[Event "Irish International Open 2019"]
[Site "Dublin"]
[Date "2019.04.21"]
[Round "8.20"]
[White "Fox, Anthony"]
[Black "Halvorsen, Benjamin"]
[Result "1-0"]
[ECO "B01"]
[WhiteElo "2031"]
[BlackElo "1767"]
[Annotator "NA"]
[PlyCount "135"]
[EventDate "2019.02.28"]
[EventType "swiss"]
[EventCountry "IRL"]
[SourceTitle "playchess.com"]
[Source "ChessBase"]
[SourceQuality "1"]
[TimeControl "5400+30"]

1. e4 {[%emt 0:00:00]} d5 {[%emt 0:00:00]} 2. exd5 {[%emt 0:00:00]} Qxd5 {[%emt 0:00:00]} 3. Nc3 {[%emt 0:00:01]} Qa5 {[%emt 0:00:00]} 4. d4 {[%emt 0:00:27]} Nf6 {[%emt 0:00:00]} 5. Nf3 {[%emt 0:00:36]} c6 {[%emt 0:00:06]} 6. Bc4 {[%emt 0:03:46]} Bf5 {[%emt 0:00:16]} 7. Bd2 {[%emt 0:00:42]} e6 {[%emt 0:00:20]} 8. Qe2 {[%emt 0:08:00]} Qc7 {[%emt 0:04:39]} 9. O-O-O {[%emt 0:00:36]} Bd6 {[%emt 0:00:41]} 10. Nh4 {[%emt 0:02:45]} Bg6 {[%emt 0:01:15]} 11. g3 {[%emt 0:03:37]} O-O {[%emt 0:03:01]} 12. Nxg6 {[%emt 0:00:39]} hxg6 {[%emt 0:00:06]} 13. h4 {[%emt 0:01:44]} a5 {[%emt 0:04:43]} 14. h5 {[%emt 0:00:50]} Nxh5 {[%emt 0:03:57]} 15. Rxh5 {[%emt 0:00:18]} gxh5 {[%emt 0:00:09]} 16. Qxh5 {[%emt 0:00:18]} Re8 {[%emt 0:09:42]} 17. Rh1 {[%emt 0:01:39]} Kf8 {[%emt 0:00:49]} 18. Qh8+ {[%emt 0:05:20]} Ke7 {[%emt 0:01:12]} 19. Qxg7 {[%emt 0:00:17]} Kd8 {[%emt 0:03:28]} 20. Ne4 {[%emt 0:04:11]} Bf8 {[%emt 0:16:46]} 21. Qf6+ {[%emt 0:04:34]} Kc8 {[%emt 0:06:10]} 22. Rh7 {[%emt 0:03:13]} Re7 {[%emt 0:01:47]} 23. Bf4 {[%emt 0:05:11]} Nd7 {[%emt 0:06:56]} 24. Qxe7 {[%emt 0:13:03]} Qxf4+ {[%emt 0:01:00]} 25. gxf4 {[%emt 0:00:10]} Bxe7 {[%emt 0:00:03]} 26. Rxf7 {[%emt 0:00:35]} Kd8 {[%emt 0:00:15]} 27. Bxe6 {[%emt 0:01:00]} b5 {[%emt 0:01:25]} 28. f5 {[%emt 0:03:24]} Nf8 {[%emt 0:01:46]} 29. Rg7 {[%emt 0:01:10]} Ra7 {[%emt 0:03:28]} 30. c3 {[%emt 0:03:32]} b4 {[%emt 0:01:45]} 31. Kc2 {[%emt 0:01:09]} bxc3 {[%emt 0:00:35]} 32. bxc3 {[%emt 0:00:09]} a4 {[%emt 0:00:10]} 33. Rg8 {[%emt 0:05:52]} Rb7 {[%emt 0:03:55]} 34. Nc5 {[%emt 0:05:51]} Bxc5 {[%emt 0:00:38]} 35. dxc5 {[%emt 0:00:06]} Ke8 {[%emt 0:00:12]} 36. Rg4 {[%emt 0:03:01]} a3 {[%emt 0:03:34]} 37. Rb4 {[%emt 0:00:10]} Rc7 {[%emt 0:00:53]} 38. Kb3 {[%emt 0:00:21]} Nxe6 {[%emt 0:03:50]} 39. fxe6 {[%emt 0:00:14]} Ke7 {[%emt 0:00:18]} 40. Re4 {[%emt 0:00:46]} Ra7 {[%emt 0:00:11]} 41. f4 {[%emt 0:00:19]} Ra8 {[%emt 0:00:50]} 42. f5 {[%emt 0:00:17]} Kf6 {[%emt 0:00:09]} 43. Rf4 {[%emt 0:02:01]} Ra5 {[%emt 0:01:31]} 44. Re4 {[%emt 0:01:17]} Ra8 {[%emt 0:00:58]} 45. e7 {[%emt 0:01:03]} Re8 {[%emt 0:00:05]} 46. Re6+ {[%emt 0:00:17]} Kxf5 {[%emt 0:00:09]} 47. Rxc6 {[%emt 0:00:06]} Rxe7 {[%emt 0:00:07]} 48. Kxa3 {[%emt 0:00:06]} Ra7+ {[%emt 0:00:37]} 49. Kb3 {[%emt 0:00:07]} Ke5 {[%emt 0:00:10]} 50. Rd6 {[%emt 0:20:10]} Ra5 {[%emt 0:00:29]} 51. a4 {[%emt 0:00:00]} Rxc5 {[%emt 0:00:12]} 52. Rd4 {[%emt 0:00:00]} Rc8 {[%emt 0:00:36]} 53. a5 {[%emt 0:00:00]} Ra8 {[%emt 0:00:30]} 54. Ra4 {[%emt 0:00:00]} Kd5 {[%emt 0:00:12]} 55. a6 {[%emt 0:00:00]} Ra7 {[%emt 0:01:19]} 56. Kb4 {[%emt 0:00:00]} Kc6 {[%emt 0:00:15]} 57. Ka5 {[%emt 0:00:00]} Kc5 {[%emt 0:00:10]} 58. Rb4 {[%emt 0:00:00]} Rh7 {[%emt 0:02:09]} 59. Rb8 {[%emt 0:00:00]} Rh1 {[%emt 0:00:35]} 60. Rc8+ {[%emt 0:00:00]} Kd6 {[%emt 0:00:20]} 61. Kb6 {[%emt 0:00:00]} Rb1+ {[%emt 0:00:18]} 62. Ka7 {[%emt 0:00:00]} Rb3 {[%emt 0:00:19]} 63. Ka8 {[%emt 0:00:00]} Kd7 {[%emt 0:00:26]} 64. Rc4 {[%emt 0:00:00]} Ra3 {[%emt 0:00:45]} 65. a7 {[%emt 0:00:00]} Rb3 {[%emt 0:00:39]} 66. Rb4 {[%emt 0:00:00]} Rxc3 {[%emt 0:02:00]} 67. Kb7 {[%emt 0:00:00]} Rc7+ {[%emt 0:00:35]} 68. Ka6 {[%emt 0:00:00]} 1-0